bitfinex/quotes_SOLUSD_20240726
["timestamp","ask_amount","ask_price","bid_price","bid_amount"]
[1722016281229,13.0,182.25,182.23,5.4874]
[1722016281401,5.4861,182.28,182.23,5.4875]
[1722016281402,13.0,182.24,182.23,5.4875]
[1722016282317,13.0,182.24,182.2,13.7204]
[1722016282318,58.0,182.24,182.2,13.7204]
[1722016282611,13.0,182.22,182.2,19.2087]
[1722016282809,45.0,182.24,182.21,5.4881]
[1722016283016,13.0,182.22,182.21,5.4881]
[1722016283295,45.0,182.24,182.2,13.7204]
[1722016283507,45.0,182.23,182.2,13.7204]
[1722016284122,45.0,182.23,182.18,5.489]
[1722016285407,45.0,182.23,182.19,5.4887]
[1722016286029,45.0,182.23,182.2,5.4883]
[1722016286531,45.0,182.23,182.15,13.7246]
[1722016286993,0.17,182.22,182.15,13.7246]
[1722016287317,5.6578,182.22,182.17,5.4891]
[1722016287642,45.0,182.21,182.17,5.4891]
[1722016287794,76.5682,182.21,182.15,19.2143]
[1722016287994,0.17,182.2,182.16,5.4896]
[1722016288722,71.08,182.21,182.16,5.4896]
[1722016289016,71.08,182.21,182.17,5.4892]
[1722016289203,71.08,182.21,182.15,13.7246]
[1722016289204,20.0,182.2,182.15,13.7246]
[1722016289404,45.17,182.19,182.15,13.7246]
[1722016289832,50.6587,182.19,182.15,13.7246]
[1722016290119,5.4892,182.18,182.12,19.2177]
[1722016290424,45.0,182.17,182.12,19.2177]
[1722016291134,45.0,182.17,182.13,5.4904]
[1722016291825,45.0,182.17,182.14,5.4902]
[1722016292025,45.0,182.18,182.14,5.4902]
[1722016292641,45.0,182.18,182.12,13.7271]
[1722016292642,71.08,182.18,182.12,13.7271]
[1722016292941,5.6596,182.17,182.12,13.7271]
[1722016293225,50.4897,182.16,182.12,13.7271]
[1722016293427,5.4897,182.16,182.12,13.7271]
[1722016293601,45.0,182.15,182.12,13.7271]
[1722016294414,45.0,182.15,182.12,19.2179]
[1722016294615,45.0,182.16,182.12,19.2179]
[1722016294811,45.0,182.16,182.13,5.4905]
[1722016295003,31.5691,182.18,182.14,5.4902]
[1722016295210,45.0,182.17,182.14,5.4902]
[1722016295409,45.0,182.17,182.13,5.4905]
[1722016295927,50.4896,182.17,182.12,19.2178]
[1722016296510,45.0,182.17,182.13,5.4904]
[1722016296826,45.0,182.17,182.12,13.7271]
[1722016297007,50.4894,182.17,182.12,19.2179]
[1722016297208,5.4897,182.16,182.12,13.7271]
[1722016297408,45.0,182.15,182.12,19.2179]
[1722016297817,50.4897,182.16,182.12,13.7271]
[1722016298327,50.4897,182.16,182.12,19.2179]
[1722016298525,45.0,182.16,182.12,13.7271]
[1722016298716,45.0,182.17,182.12,13.7271]
[1722016299028,45.0,182.17,182.13,5.4904]
[1722016299414,45.0,182.17,182.14,5.4901]
[1722016300313,45.0,182.17,182.13,5.4905]
[1722016300512,5.4897,182.16,182.12,13.7271]
[1722016300728,45.0,182.15,182.12,13.7271]
[1722016301115,71.08,182.15,182.12,13.7271]
[1722016301316,76.5699,182.15,182.1,5.4914]
[1722016301532,76.5699,182.15,182.11,5.491]
[1722016301533,71.08,182.15,182.11,5.491]
[1722016301833,71.08,182.15,182.12,5.4907]
[1722016302034,71.08,182.15,182.13,5.4905]
[1722016302221,26.08,182.15,182.14,5.4902]
[1722016303119,31.78861179,182.18,182.15,5.4898]
[1722016303318,26.08,182.18,182.15,5.4898]
[1722016303735,45.0,182.17,182.15,5.4898]
[1722016304921,26.08,182.18,182.15,5.4898]
[1722016305240,13.05,182.16,182.13,13.7258]
[1722016305419,5.70823138,182.2,182.15,13.7244]
[1722016305618,5.4881,182.21,182.15,13.7244]
[1722016305814,5.4881,182.21,182.15,19.2141]
[1722016306017,5.489,182.18,182.14,5.4902]
[1722016306223,13.05,182.15,182.12,13.7269]
[1722016306415,13.05,182.13,182.12,13.7269]
[1722016306627,13.05,182.13,182.12,19.2177]
[1722016308438,5.4884,182.21,182.14,13.7251]
[1722016308636,13.05,182.15,182.14,19.2153]
[1722016308946,13.05,182.15,182.11,13.7276]
[1722016309123,13.05,182.12,182.11,13.7276]
[1722016309329,13.05,182.12,182.1,5.4914]
[1722016309536,12.55,182.11,182.1,5.4914]
[1722016315059,12.55,182.11,182.08,13.7299]
[1722016315225,13.05,182.09,182.08,19.2217]
[1722016316830,5.70946284,182.13,182.1,5.4914]
[1722016317031,13.05,182.11,182.09,5.4917]
[1722016317229,13.05,182.1,182.08,19.2219]
[1722016317429,13.05,182.09,182.06,5.4926]
[1722016317651,13.05,182.07,182.06,5.4926]
[1722016318832,13.05,182.08,182.07,19.2232]
[1722016320744,45.0,182.13,182.09,5.4915]
[1722016320945,13.05,182.1,182.09,5.4915]
[1722016321647,13.05,182.1,182.07,19.2231]
[1722016321846,5.4909,182.12,182.07,19.2231]
[1722016321847,13.05,182.08,182.07,19.2231]
[1722016322355,58.05,182.08,182.04,19.2263]
[1722016322652,5.4915,182.1,182.04,13.7331]
[1722016322864,13.05,182.05,182.04,19.2263]
[1722016328038,13.05,182.05,182.03,0.775273]
[1722016328253,58.05,182.04,182.03,0.775273]
[1722016328458,58.22,182.04,182.03,0.775273]
[1722016328758,83.7132,182.04,182.03,0.775273]
[1722016329365,103.7132,182.04,182.03,0.775273]
[1722016329539,13.05,181.97,181.95,5.4959]
[1722016329745,13.05,181.96,181.95,5.4959]
[1722016330258,20.0,182.01,181.91,6.179]
[1722016330259,20.0,182.02,181.97,5.4953]
[1722016330566,13.05,181.98,181.97,5.4954]
[1722016331571,13.05,181.98,181.96,13.7392]
[1722016331778,13.05,181.97,181.96,13.7392]
[1722016332073,13.05,181.97,181.95,5.4957]
[1722016332369,13.05,181.96,181.95,5.4957]
[1722016333247,13.05,181.97,181.95,5.4957]
[1722016333455,5.4945,182.0,181.95,5.4957]
[1722016333456,13.05,181.98,181.95,13.7394]
[1722016333770,13.05,181.98,181.97,5.4951]
[1722016333962,13.05,181.98,181.96,5.4956]
[1722016334276,13.05,181.98,181.97,5.4954]
[1722016334671,13.05,182.0,181.99,5.4947]
[1722016334861,58.05,182.0,181.98,13.7375]
[1722016335067,20.0,182.04,181.98,13.7375]
[1722016335245,13.05,181.99,181.98,13.7375]
[1722016335576,13.05,181.99,181.95,13.74]
[1722016335744,13.05,181.98,181.95,13.74]
[1722016336364,58.05,181.97,181.93,5.4963]
[1722016336540,13.05,181.96,181.92,13.7422]
[1722016336740,13.05,181.96,181.95,5.496]
[1722016336948,65.0,181.95,181.82,50.0421]
[1722016337146,13.05,181.89,181.87,13.7455]
[1722016337376,13.05,181.89,181.88,5.498]
[1722016337549,13.05,181.9,181.89,5.4978]
[1722016338346,13.05,181.91,181.89,5.4978]
[1722016338548,13.05,181.91,181.87,13.7455]
[1722016338962,13.05,181.91,181.89,5.4977]
[1722016339768,13.05,181.91,181.9,5.4975]
[1722016340070,13.05,181.93,181.91,5.4972]
[1722016340294,13.05,181.93,181.92,5.4969]
[1722016340453,13.05,181.93,181.91,5.4971]
[1722016341184,13.05,181.94,181.92,5.4969]
[1722016341473,13.05,181.93,181.92,5.4969]
[1722016341669,13.05,181.94,181.93,5.4965]
[1722016342171,13.05,181.94,181.92,5.4968]
[1722016342753,5.71125742,181.98,181.94,13.7407]
[1722016342955,13.05,181.96,181.94,13.7407]
[1722016343371,13.05,181.96,181.94,19.2367]
[1722016344052,13.05,181.95,181.94,13.7407]
[1722016344868,13.05,181.95,181.91,5.4969]
[1722016345065,58.05,181.94,181.91,5.4969]
[1722016345375,13.05,181.95,181.92,13.7416]
[1722016345682,13.05,181.96,181.94,5.4963]
[1722016346080,5.4951,181.98,181.93,5.4965]
[1722016346272,13.05,181.95,181.93,5.4965]
[1722016347082,13.05,181.96,181.94,5.4963]
[1722016347274,13.05,181.96,181.95,5.496]
[1722016347597,58.05,181.96,181.95,5.496]
[1722016347764,58.774727,181.96,181.94,5.4962]
[1722016348173,13.05,181.95,181.94,5.4962]
[1722016349065,13.05,181.96,181.95,5.4959]
[1722016349265,13.05,181.97,181.96,5.4957]
[1722016349466,13.05,181.98,181.97,5.4952]
[1722016349659,5.71044993,182.01,181.98,5.495]
[1722016349854,13.05,181.99,181.97,5.4953]
[1722016350067,13.05,181.98,181.94,5.4962]
[1722016350286,13.05,181.96,181.92,5.4966]
[1722016350484,13.774727,181.95,181.92,5.4968]
[1722016350693,13.05,181.94,181.92,5.4968]
[1722016350875,13.05,181.95,181.94,5.4963]
[1722016351261,13.05,181.96,181.95,5.4959]
[1722016351667,13.05,181.96,181.93,5.4963]
[1722016351870,13.05,181.95,181.93,5.4963]
[1722016352103,13.05,181.95,181.94,5.4963]
[1722016352302,13.05,181.95,181.92,5.4967]
[1722016352502,13.05,181.95,181.93,13.741]
[1722016352687,13.05,181.95,181.93,19.2374]
[1722016353074,5.4951,181.98,181.93,19.2374]
[1722016353274,45.0,181.97,181.93,19.2374]
[1722016353503,50.4955,181.97,181.93,13.741]
[1722016354378,5.496,181.95,181.89,36.2677]
[1722016354592,0.724727,181.94,181.9,5.4972]
[1722016354801,51.221027,181.94,181.9,5.4972]
[1722016355705,45.0,181.94,181.92,5.4967]
[1722016355890,0.724727,181.93,181.92,5.4967]
[1722016356088,0.724727,181.93,181.91,19.2396]
[1722016356511,0.724727,181.93,181.92,5.4969]
[1722016356807,45.0,181.94,181.92,5.4969]
[1722016357183,45.0,181.94,181.93,5.4966]
[1722016359300,0.17,181.96,181.93,13.7411]
[1722016359514,26.16,181.99,181.93,13.7411]
[1722016359809,0.724727,181.98,181.95,5.4957]
[1722016359978,0.724727,181.98,181.96,5.4956]
[1722016360816,45.724727,181.98,181.96,5.4956]
[1722016361680,45.724727,181.98,181.95,19.2353]
[1722016361908,45.724727,181.98,181.95,13.7394]
[1722016362083,20.0,181.97,181.92,19.2388]
[1722016362292,45.0,181.96,181.92,19.2388]
[1722016362490,0.724727,181.95,181.92,19.2388]
[1722016363204,0.724727,181.95,181.92,13.742]
[1722016363417,0.17,181.94,181.9,5.4972]
[1722016363711,45.17,181.94,181.91,5.4971]
[1722016364609,0.724727,181.93,181.91,5.4971]
[1722016366622,0.724727,181.92,181.91,5.4971]
[1722016366935,0.894727,181.92,181.91,5.4971]
[1722016367300,45.0,181.94,181.93,5.4966]
[1722016367494,45.17,181.94,181.93,5.4966]
[1722016368721,45.0,181.94,181.93,5.4966]
[1722016369900,45.0,181.94,181.92,5.4969]
[1722016370100,0.724727,181.93,181.92,5.4969]
[1722016374205,0.724727,181.93,181.91,19.2395]
[1722016374506,13.804727,181.93,181.91,19.2395]
[1722016374710,0.724727,181.92,181.91,19.2395]
[1722016374901,45.724727,181.92,181.91,19.2395]
[1722016375705,45.0,181.92,181.91,19.2395]
[1722016376323,58.08,181.92,181.91,19.2395]
[1722016376832,45.0,181.92,181.91,19.2395]
[1722016378527,45.724727,181.92,181.91,19.2395]
[1722016378709,58.25,181.92,181.91,13.7424]
[1722016379417,45.0,181.92,181.91,13.7424]
[1722016379916,58.804727,181.92,181.91,13.7424]
[1722016380102,58.08,181.92,181.91,19.2396]
[1722016380307,58.25,181.92,181.91,19.2396]
[1722016380702,45.0,181.92,181.91,19.2396]
[1722016382652,0.724727,181.97,181.93,13.741]
[1722016382826,0.724727,181.97,181.9,13.08]
[1722016382827,13.08,181.97,181.92,13.08]
[1722016383031,13.08,181.97,181.96,5.4954]
[1722016385380,58.08,181.97,181.96,5.4954]
[1722016385651,45.0,181.97,181.96,5.4954]
[1722016385825,58.08,181.97,181.96,5.4954]
[1722016386939,58.08,181.97,181.95,13.7395]
[1722016387146,58.974727,181.96,181.95,13.7395]
[1722016387463,45.17,181.96,181.95,19.2355]
[1722016388059,58.25,181.96,181.95,13.7395]
[1722016388755,58.25,181.96,181.93,5.4965]
[1722016389053,13.08,181.94,181.93,5.4965]
[1722016389258,45.0,181.94,181.93,5.4966]
[1722016389837,13.08,181.94,181.93,5.4966]
[1722016390936,58.08,181.94,181.93,5.4966]
[1722016392551,20.0,181.99,181.94,13.7403]
[1722016392753,20.0,182.01,181.98,5.4951]
[1722016392957,13.08,181.99,181.98,5.4951]
[1722016393958,13.25,181.99,181.98,5.4951]
[1722016394156,13.08,181.99,181.98,5.4951]
[1722016394357,20.0,182.05,181.96,13.08]
[1722016394545,9.91175204,182.04,182.03,5.4935]
[1722016394746,9.91175204,182.06,182.03,5.4935]
[1722016394947,13.08,182.04,182.03,5.4935]
[1722016395142,13.08,182.04,182.02,5.4938]
[1722016395343,13.08,182.03,182.01,19.2291]
[1722016395748,13.08,182.02,182.01,19.2291]
[1722016396563,13.08,182.02,182.01,13.735]
[1722016396968,58.08,182.02,181.98,13.7376]
[1722016397164,58.08,182.02,181.98,19.2324]
[1722016397165,13.08,182.0,181.98,19.2324]
[1722016397468,13.08,182.0,181.98,13.7376]
[1722016397663,13.08,181.99,181.94,13.74]
[1722016397863,13.08,181.97,181.96,5.4957]
[1722016398361,58.08,181.97,181.95,5.4959]
[1722016398566,58.08,181.96,181.95,5.4959]
[1722016398764,45.0,181.96,181.95,5.4959]
[1722016398950,13.08,181.98,181.97,13.7385]
[1722016399149,58.08,181.98,181.97,13.7385]
[1722016400268,58.08,181.98,181.97,19.2337]
[1722016401178,58.08,181.98,181.94,13.7406]
[1722016401482,45.724727,181.97,181.96,5.4957]
[1722016401649,58.08,181.97,181.96,5.4957]
[1722016406150,13.08,181.98,181.97,19.2338]
[1722016406355,58.08,181.98,181.97,13.7384]
[1722016406756,58.25,181.98,181.97,13.7384]
[1722016406956,58.08,181.98,181.97,13.7384]
[1722016407469,13.08,182.0,181.97,13.7384]
[1722016407975,13.08,182.01,182.0,5.4945]
[1722016408152,25.493,182.05,182.0,5.4945]
[1722016408467,20.0,182.07,181.92,21.9091]
[1722016408468,13.08,182.07,182.06,5.4924]
[1722016408669,20.0,182.09,182.07,5.4922]
[1722016408859,13.08,182.08,182.07,5.4922]
[1722016409269,13.08,182.08,182.06,5.4926]
[1722016409660,13.804727,182.07,182.01,35.62]
[1722016409852,13.08,182.05,182.01,35.62]
[1722016410169,13.08,182.04,182.02,5.4936]
[1722016410368,45.0,182.03,182.02,5.4936]
[1722016410670,58.08,182.03,182.01,13.735]
[1722016410866,13.08,182.02,182.01,19.2291]
[1722016411066,58.804727,182.02,182.01,13.735]
[1722016411367,58.974727,182.02,181.98,19.2326]
[1722016411569,13.08,181.99,181.98,19.2326]
[1722016411979,13.08,182.0,181.99,5.4948]
[1722016412156,58.08,182.0,181.99,5.4948]
[1722016413850,45.0,182.0,181.99,5.4948]
[1722016414054,58.08,182.0,181.99,5.4948]
[1722016414256,0.724727,182.03,182.02,5.4939]
[1722016414462,13.25,182.03,182.02,5.4939]
[1722016414663,58.25,182.03,182.02,5.4939]
[1722016414876,58.25,182.03,182.0,13.7356]
[1722016415173,13.08,182.01,182.0,13.7356]
[1722016415392,58.08,182.01,182.0,13.7356]
[1722016415588,58.08,182.01,182.0,19.23]
[1722016415882,45.0,182.01,182.0,19.23]
[1722016417255,58.08,182.01,182.0,19.23]
[1722016417462,13.08,182.01,182.0,19.23]
[1722016417675,13.08,182.02,182.01,5.4942]
[1722016417873,58.08,182.02,182.01,5.4942]
[1722016418862,58.08,182.02,182.0,19.23]
[1722016419061,13.08,182.01,182.0,19.23]
[1722016419262,13.08,182.01,182.0,13.7356]
[1722016419882,13.08,182.01,182.0,19.2301]
[1722016420776,58.08,182.01,182.0,19.2301]
[1722016421183,13.08,182.01,182.0,19.2301]
[1722016421383,77.8126,182.07,182.0,13.7356]
[1722016421384,13.08,182.03,182.0,13.7356]
[1722016421582,20.0,182.09,181.99,13.08]
[1722016421765,20.0,182.09,182.07,5.4921]
[1722016422892,58.25,182.08,182.07,5.4921]
[1722016423389,5.72331192,182.12,182.09,5.4917]
[1722016423566,13.08,182.1,182.09,5.4917]
[1722016424783,58.08,182.1,182.09,5.4917]
[1722016426066,5.72331192,182.12,182.1,5.4912]
[1722016426067,13.08,182.11,182.1,5.4912]
[1722016426290,58.08,182.11,182.1,5.4912]
[1722016426987,5.72331192,182.12,182.11,5.4911]
[1722016427191,50.72331192,182.12,182.11,5.4911]
[1722016427381,50.72331192,182.12,182.1,13.7282]
[1722016427591,58.08,182.11,182.08,5.492]
[1722016427772,13.08,182.1,182.08,5.492]
[1722016428093,13.08,182.09,182.08,5.492]
[1722016428678,13.08,182.09,182.07,13.7307]
[1722016428882,13.08,182.09,182.08,5.492]
[1722016429383,13.08,182.1,182.09,5.4917]
[1722016433498,58.08,182.11,182.09,5.4917]
[1722016433798,13.08,182.1,182.09,5.4917]
[1722016434095,5.72331192,182.12,182.1,5.4913]
[1722016434270,18.80331192,182.12,182.11,5.4911]
[1722016434473,13.08,182.12,182.11,5.4911]
[1722016434686,5.4895,182.17,182.12,5.4907]
[1722016434887,13.08,182.14,182.13,5.4904]
[1722016435080,13.08,182.15,182.14,5.4901]
[1722016436175,13.08,182.16,182.14,5.4901]
[1722016436801,13.08,182.15,182.14,5.4901]
[1722016436995,13.08,182.16,182.14,5.4901]
[1722016437793,5.4885,182.2,182.15,5.4899]
[1722016437982,13.08,182.18,182.15,5.4899]
[1722016438186,13.08,182.18,182.16,5.4895]
[1722016440676,13.08,182.18,182.15,5.4899]
[1722016442492,13.08,182.17,182.15,5.4899]
[1722016442698,13.08,182.16,182.15,5.4899]
[1722016443291,13.08,182.17,182.15,5.4899]
[1722016444377,13.08,182.16,182.14,13.7252]
[1722016444576,13.08,182.15,182.14,13.7252]
[1722016444997,13.08,182.15,182.14,19.2154]
[1722016445374,13.08,182.15,182.14,13.7252]
[1722016445577,13.08,182.17,182.16,5.4896]
[1722016446196,13.08,182.18,182.17,5.4893]
[1722016447297,5.72061507,182.23,182.17,14.17785257]
[1722016447488,13.08,182.24,182.23,5.4875]
[1722016447994,13.08,182.25,182.23,5.4875]
[1722016448383,13.08,182.25,182.24,5.4872]
[1722016448588,13.08,182.27,182.26,5.4866]
[1722016449199,13.08,182.27,182.25,5.4868]
[1722016450593,13.08,182.27,182.24,19.2047]
[1722016451494,13.08,182.27,182.25,5.4868]
[1722016451696,5.72696044,182.29,182.27,5.4863]
[1722016451875,13.08,182.28,182.27,5.4863]
[1722016452280,13.08,182.28,182.26,13.716]
[1722016452584,0.775273,182.3,182.26,19.2026]
[1722016452585,13.08,182.27,182.26,19.2026]
[1722016452789,13.08,182.28,182.26,19.2026]
[1722016454180,0.775273,182.3,182.26,19.2026]
[1722016454181,0.775273,182.3,182.26,13.716]
[1722016454695,13.08,182.29,182.26,13.716]
[1722016454882,13.08,182.27,182.26,13.716]
[1722016455805,13.08,182.27,182.25,5.4869]
[1722016455991,13.08,182.26,182.25,5.4869]
[1722016456388,13.08,182.26,182.23,13.7186]
[1722016456587,13.08,182.24,182.2,13.7209]
[1722016456801,13.08,182.21,182.2,19.2093]
[1722016456987,13.08,182.21,182.2,13.7209]
[1722016457192,13.08,182.21,182.18,5.4889]
[1722016457495,0.724727,182.2,182.17,19.2126]
[1722016457696,13.08,182.18,182.17,19.2126]
[1722016458596,13.08,182.19,182.18,5.489]
[1722016459184,45.0,182.21,182.19,5.4886]
[1722016459394,45.0,182.21,182.2,5.4884]
[1722016459796,45.0,182.21,182.19,13.7214]
[1722016460104,45.0,182.21,182.2,5.4884]
[1722016460305,51.5769,182.25,182.2,5.4884]
[1722016460606,0.17,182.24,182.21,5.4881]
[1722016460813,45.17,182.24,182.21,5.4881]
[1722016461590,45.17,182.24,182.22,5.4877]
[1722016461905,45.0,182.24,182.23,5.4875]
[1722016462285,15.2211,182.27,182.23,5.4875]
[1722016462702,20.94972165,182.27,182.23,5.4875]
[1722016463086,26.43612165,182.27,182.21,13.7199]
[1722016463287,5.72862165,182.27,182.25,5.4867]
[1722016463485,5.4857,182.29,182.25,5.4867]
[1722016463918,0.724727,182.28,182.24,13.7181]
[1722016464086,6.210827,182.28,182.24,13.7181]
[1722016464286,5.4864,182.27,182.23,5.4873]
[1722016464703,5.4859,182.29,182.23,5.4873]
[1722016465018,45.17,182.28,182.24,5.4871]
[1722016465185,45.17,182.28,182.25,5.4869]
[1722016465385,6.50381629,182.3,182.24,6.147]
[1722016465684,0.724727,182.29,182.26,13.7166]
[1722016465885,5.4857,182.29,182.23,21.3942]
[1722016466097,32.350973,182.3,182.25,5.4869]
[1722016466285,5.4857,182.29,182.25,5.4869]
[1722016466901,45.0,182.28,182.25,5.4869]
[1722016467490,45.0,182.28,182.23,13.7186]
[1722016467491,45.0,182.28,182.24,5.4871]
[1722016468109,50.4861,182.28,182.24,5.4871]
[1722016468407,0.724727,182.27,182.23,19.2061]
[1722016468995,45.0,182.28,182.23,13.7186]
[1722016469296,6.260973,182.3,182.27,13.7153]
[1722016469297,0.775273,182.3,182.27,13.7153]
[1722016469506,0.775273,182.3,182.29,5.4857]
[1722016471215,0.775273,182.3,182.27,5.486]
[1722016471617,0.775273,182.3,182.26,13.716]
[1722016471823,0.775273,182.3,182.25,15.902]
[1722016471824,0.775273,182.3,182.29,5.4857]
[1722016473225,0.775273,182.3,182.28,19.2006]
[1722016473410,0.775273,182.3,182.28,13.7146]
[1722016473811,0.775273,182.3,182.28,19.2005]
[1722016474235,0.775273,182.3,182.29,5.4857]
[1722016474407,0.775273,182.3,182.29,6.58273794]
[1722016474610,0.775273,182.3,182.29,6.58268533]
[1722016475112,0.775273,182.3,182.29,5.4857]
[1722016475302,0.775273,182.3,182.29,6.58266987]
[1722016475628,0.775273,182.3,182.29,5.4857]
[1722016476124,0.775273,182.3,182.29,6.58265698]
[1722016476419,0.775273,182.3,182.29,5.4857]
[1722016476627,0.775273,182.3,182.29,6.5825405]
[1722016476810,0.775273,182.3,182.29,5.4857]
[1722016485221,13.805273,182.3,182.29,5.4857]
[1722016486725,0.775273,182.3,182.29,5.4857]
[1722016488209,0.775273,182.3,182.29,6.58272327]
[1722016488631,0.775273,182.3,182.29,5.4857]
[1722016491918,13.805273,182.3,182.28,19.2005]
[1722016492118,13.03,182.29,182.28,19.2005]
[1722016495426,13.03,182.29,182.28,13.7146]
[1722016496456,13.03,182.29,182.28,19.2006]
[1722016496646,58.03,182.29,182.28,13.7146]
[1722016497257,58.03,182.29,182.28,19.2006]
[1722016499056,58.03,182.29,182.27,5.4862]
[1722016499360,13.754727,182.28,182.27,5.4862]
[1722016499725,13.03,182.28,182.27,5.4862]
[1722016500437,13.754727,182.28,182.27,5.4862]
[1722016500656,58.754727,182.28,182.26,5.4866]
[1722016500856,13.03,182.27,182.26,5.4866]
[1722016501172,13.03,182.27,182.25,19.2038]
[1722016501454,13.03,182.26,182.25,19.2038]
[1722016502369,45.0,182.29,182.27,5.4862]
[1722016502527,13.03,182.28,182.27,5.4862]
[1722016502862,58.03,182.28,182.27,5.4862]
[1722016503228,58.03,182.28,182.26,5.4866]
[1722016503538,58.754727,182.27,182.26,5.4866]
[1722016503921,58.03,182.27,182.26,5.4866]
[1722016505562,58.03,182.27,182.23,5.4872]
[1722016505856,13.03,182.24,182.23,5.4872]
[1722016506957,58.03,182.24,182.22,19.2071]
[1722016507169,13.03,182.23,182.22,19.2071]
[1722016507455,13.03,182.23,182.2,5.4882]
[1722016507661,13.03,182.21,182.2,5.4882]
[1722016507837,58.03,182.21,182.2,5.4882]
[1722016509032,58.03,182.21,182.19,13.7218]
[1722016509334,58.03,182.2,182.19,13.7218]
[1722016510043,58.03,182.2,182.19,19.2105]
[1722016510541,58.03,182.2,182.17,5.4893]
[1722016510758,13.03,182.18,182.17,5.4893]
[1722016511334,58.03,182.18,182.17,5.4893]
[1722016513746,58.03,182.18,182.16,5.4895]
[1722016513947,58.754727,182.17,182.16,5.4895]
[1722016514351,58.03,182.17,182.16,5.4895]
[1722016515156,13.03,182.17,182.16,5.4895]
[1722016515358,13.03,182.18,182.17,19.212]
[1722016516047,13.03,182.18,182.15,5.4896]
[1722016516354,13.03,182.16,182.15,5.4896]
[1722016517555,58.754727,182.16,182.14,19.2155]
[1722016517764,13.03,182.15,182.14,19.2155]
[1722016520853,0.724727,182.23,182.19,5.4884]
[1722016521059,13.03,182.2,182.17,5.4891]
[1722016521266,13.03,182.19,182.18,19.211]
[1722016521648,13.03,182.19,182.18,13.722]
[1722016521849,13.03,182.2,182.18,13.722]
[1722016522267,13.03,182.19,182.16,5.4896]
[1722016522580,13.03,182.18,182.16,5.4896]
[1722016524969,13.03,182.18,182.17,5.4893]
[1722016525175,13.03,182.2,182.18,5.489]
[1722016525849,13.03,182.21,182.2,5.4884]
[1722016526187,13.03,182.23,182.19,13.7214]
[1722016526355,13.03,182.24,182.22,5.4878]
[1722016526880,13.03,182.23,182.19,19.2099]
[1722016527087,13.03,182.22,182.19,19.2099]
[1722016527276,13.03,182.22,182.2,5.4884]
[1722016529153,13.03,182.21,182.16,13.7238]
[1722016529365,0.724727,182.22,182.16,13.7238]
[1722016529366,13.03,182.18,182.17,5.4893]
[1722016530787,13.03,182.19,182.18,5.4889]
[1722016531563,13.03,182.19,182.17,5.4893]
[1722016532173,13.03,182.19,182.18,5.489]
[1722016532994,13.03,182.19,182.16,13.7238]
[1722016533164,13.03,182.17,182.16,13.7238]